Cogmind - Beta 14 @@@ ROGUE MODE // 2024.08.08 @ 12:31:18 Player: Olafz Result: Destroyed by S-10 Pest with Light Assault Rifle Performance ------------- Evolutions (0) 0 Regions Visited (2) 400 Robots Destroyed (26) 130 Value Destroyed (887) 887 Prototype IDs (1) 20 Alien Tech Used (0) 0 Bonus (0) 0 TOTAL SCORE: 1437 Bonus ------- None Cogmind --------- Core Integrity 0/250 Matter 300/300 Energy 177/200 System Corruption 0% Temperature Cool (18) Movement Treading (240) Ox1 Location -10/Subcaves Parts ------- > --- POWER (1) -------- Subdweller Power Source > --- PROPULSION (2) --- Light Treads > --- UTILITY (2) ------ Disposable Heat Sink Large Storage Unit > --- WEAPON (2) ------- Subdweller Laser Subdweller Beam Cannon > --- INVENTORY (15) --- Heavy Ion Engine Heavy Ion Engine Subdweller Power Source Wheel Compact Wheel Subdweller Monowheel Large Storage Unit ECM Suite Weapon Shielding Subdweller Laser Makeshift Laser Subdweller Beam Cannon Heavy Assault Rifle Heavy Assault Rifle Makeshift Hammer Peak State ------------ > --- POWER ------------ Heavy Ion Engine > --- PROPULSION ------- Light Treads Light Treads > --- UTILITY ---------- Disposable Heat Sink Large Storage Unit > --- WEAPON ----------- Subdweller Beam Cannon Heavy Assault Rifle > --- INVENTORY -------- Heavy Ion Engine Subdweller Power Source Light Treads Wheel Compact Wheel Subdweller Monowheel Large Storage Unit ECM Suite Weapon Shielding Subdweller Laser Makeshift Laser Subdweller Beam Cannon Heavy Assault Rifle Heavy Assault Rifle Mace [Rating: 14] Favorites ----------- Power Heavy Ion Engine Engine Heavy Ion Engine Propulsion Light Treads Treads Light Treads Leg Aluminum Leg Utility Large Storage Unit Device Structural Scanner Storage Large Storage Unit Processor Transport Network Coupler Protection Weapon Shielding Weapon Heavy Assault Rifle Energy Gun Subdweller Laser Energy Cannon Subdweller Beam Cannon Ballistic Gun Heavy Assault Rifle Impact Weapon Mace Build | -11 -10 -10 ------- Run | Yrd Mat Sub Slots Evolved . | . . . Power . | . . . Propulsion . | . . . Utility . | . . . Weapon . | . . . Parts Attached 22 | . 12 10 Power 4 | . 2 2 Engine 4 | . 2 2 Core . | . . . Reactor . | . . . Propulsion 5 | . 3 2 Treads 5 | . 3 2 Leg . | . . . Wheel . | . . . Hover . | . . . Flight . | . . . Utility 5 | . 4 1 Device 2 | . 1 1 Storage 1 | . 1 . Processor 1 | . 1 . Hackware . | . . . Protection 1 | . 1 . Artifact . | . . . Weapon 8 | . 3 5 Energy Gun 2 | . . 2 Energy Cannon 2 | . . 2 Ballistic Gun 3 | . 3 . Ballistic Cannon . | . . . Launcher . | . . . Special Weapon . | . . . Impact Weapon 1 | . . 1 Slashing Weapon . | . . . Piercing Weapon . | . . . Special Melee Weapon . | . . . Unidentified Prototypes 1 | . 1 . Parts Lost 3 | . 1 2 Power . | . . . Propulsion 2 | . . 2 Utility . | . . . Weapon 1 | . 1 . Highest Loss Streak 1 | . 1 1 To Critical Strikes . | . . . Average Slot Usage (%) 98 | . 97 99 Engine 13 | . 13 14 Treads 27 | . 27 27 Device 7 | . 2 14 Storage 14 | . 14 14 Processor 2 | . 5 . Protection 3 | . 5 . Energy Gun 3 | . 3 4 Energy Cannon 3 | . . 8 Ballistic Gun 19 | . 23 14 Peak Build Rating 14 | . 13 14 Average Rating 11 | . 10 13 On Entrance 8 | 6 6 13 Naked Turns . | . . . Heaviest Build 41 | 13 35 41 Greatest Support 40 | 20 40 40 Greatest Overweight (x) 1 | . . 1 Average Overweight (x) . | . . . Largest Inventory Capacity 15 | . 15 15 Average Capacity 12 | . 9 15 Most Carried 15 | . 13 15 Average Carried 11 | . 8 14 Final Capacity 15 | 8 15 15 Final Carried 15 | 6 13 15 Class Distribution -------------------- 84% | Mutant 15% | Scavenger-Mutant Dominant Class ---------------- Mutant | -10/Materials Mutant | -10/Subcaves Resources | -11 -10 -10 ----------- Run | Yrd Mat Sub Matter Collected 712 | 183 219 310 Remotely . | . . . Salvage Created 1078 | . 626 452 Parts 66 | . 39 27 Haulers Intercepted 1 | . 1 . Recyclers Shooed 1 | . 1 . Parts Field Recycled . | . . . Retrieved Matter . | . . . Parts Self-Destructed 12 | . . 12 Prevented . | . . . Kills | -11 -10 -10 ------- Run | Yrd Mat Sub Combat Hostiles Destroyed 21 | . 11 10 Guns 15 | . 11 4 Cannons 6 | . . 6 Classes Destroyed 6 | . 4 2 Builder 1 | . 1 . Hauler 1 | . 1 . Watcher 3 | . 3 . Grunt 13 | . 11 2 Sentry 1 | . . 1 Subdweller 7 | . . 7 Best Kill Streak 5 | . 5 2 Combat Bots Only 5 | . 5 2 Max Kills in Single Turn 1 | . 1 1 Gunslinging . | . . . Exploded . | . . . Melee . | . . . Uniques/NPCs Destroyed . | . . . Combat | -11 -10 -10 -------- Run | Yrd Mat Sub Hostile Shots Fired 117 | . 47 70 Missed 37 | . 16 21 Damage Taken 1305 | . 378 927 Core 253 | . 39 214 Absorbed by Shields . | . . . Redirected to Shielding 11 | . 11 . Regen/Repaired (Parts) 113 | . 113 . Core Remaining (%) 100 | 100 . . Volleys Fired 99 | . 51 48 Largest 2 | . 2 2 Hottest 140 | . 60 140 Shots Fired 194 | . 101 93 Gun 167 | . 101 66 Cannon 27 | . . 27 Launcher . | . . . Special . | . . . Kinetic 119 | . 77 42 Thermal 51 | . . 51 Explosive . | . . . Electromagnetic 24 | . 24 . Robot Hit Streak 16 | . 16 13 Robot Miss Streak 3 | . 3 2 Penetration Max . | . . . Secondary Targets 1 | . . 1 Max Gunslinging Chain 1 | . . 1 Shots Hit Robots 123 | . 69 54 Core Hits 46 | . 32 14 Critical Kills . | . . . Critical Parts Destroyed . | . . . Critical Strikes . | . . . Melee Attacks 1 | . . 1 Impact 1 | . . 1 Slashing . | . . . Piercing . | . . . Sneak Attacks . | . . . Combat Hostiles . | . . . Follow-up Attacks . | . . . Damage Inflicted 1966 | . 908 1058 Guns 1551 | . 899 652 Cannons 406 | . . 406 Explosions . | . . . Melee . | . . . Ramming 9 | . 9 . Kinetic 995 | . 650 345 Thermal 713 | . . 713 Explosive . | . . . Electromagnetic 249 | . 249 . Impact . | . . . Slashing . | . . . Piercing . | . . . Highest Corruption . | . . . Average Corruption . | . . . Corruption Purged . | . . . Corruption Blocked . | . . . Overload Shots . | . . . Overflow Damage . | . . . Projectiles . | . . . Explosions . | . . . Melee . | . . . Knockbacks . | . . . Impact . | . . . Kinetic . | . . . Secondary . | . . . Self-Inflicted Damage . | . . . Shots . | . . . Rammed 1 | . 1 . Targets Rammed 1 | . 1 . Kicked . | . . . Crushed . | . . . Highest Temperature 194 | . 123 194 Average Temperature 54 | . 46 64 Received Heat Transfer 471 | . 207 264 Siege Activations . | . . . Robots Corrupted . | . . . Combat Hostiles . | . . . Parts Fried 1 | . 1 . Impact Corruptions . | . . . Robots Melted . | . . . Combat Hostiles . | . . . Parts Melted 1 | . . 1 Heat Transferred 930 | . . 930 Parts Sabotaged . | . . . Parts Stolen . | . . . Parts Stripped . | . . . Power Chain Reactions . | . . . Alert | -11 -10 -10 ------- Run | Yrd Mat Sub Peak Influence 154 | . 154 . Initial . | . . . Average 46 | . 46 . Maximum Alert Level . | . . . Low Security (%) 100 | . 100 . Level 1 . | . . . Level 2 . | . . . Level 3 . | . . . Level 4 . | . . . Level 5 . | . . . High Security . | . . . Max Security . | . . . Squads Dispatched 2 | . 2 . Investigation . | . . . Extermination . | . . . Reinforcement 2 | . 2 . Assault . | . . . Garrison . | . . . Intercept . | . . . Searches Triggered . | . . . Construction Impeded . | . . . Haulers Reinforced . | . . . Active Scanning Responses . | . . . Cargo Convoy Interrupts . | . . . Stealth | -11 -10 -10 --------- Run | Yrd Mat Sub Distress Signals 1 | . 1 . Communications Jammed . | . . . Distress Signals . | . . . Times Spotted 33 | . 17 16 Peak Tracking Total 6 | . 4 6 Tactical Retreats . | . . . Traps | -11 -10 -10 ------- Run | Yrd Mat Sub Traps Triggered 1 | . . 1 Indirectly . | . . . Trap Hack Attempts . | . . . Triggered . | . . . Disarmed . | . . . Reprogrammed . | . . . Reused . | . . . Traps Extracted . | . . . Installed . | . . . Triggered 4 | . . 4 Machines | -11 -10 -10 ---------- Run | Yrd Mat Sub Machines Disabled . | . . . Max in Single Turn . | . . . Machines Repaired . | . . . Machines Dismantled . | . . . Machines Sabotaged . | . . . Overloaded Fab Kills . | . . . Hacking | -11 -10 -10 --------- Run | Yrd Mat Sub Machines Accessed 3 | . 3 . Terminals 1 | . 1 . Fabricators . | . . . Repair Stations 1 | . 1 . Recycling Units 1 | . 1 . Scanalyzers . | . . . Garrison Access . | . . . Total Hacks 6 | . 6 . Successful 3 | . 3 . Failed 3 | . 3 . Catastrophic . | . . . Database Lockouts . | . . . Manual 2 | . 2 . Terminals 2 | . 2 . Fabricators . | . . . Repair Stations 2 | . 2 . Recycling Units 2 | . 2 . Scanalyzers . | . . . Garrison Access . | . . . Terminal Hacks . | . . . Fabricator Hacks . | . . . Repair Station Hacks 2 | . 2 . Scan Component 1 | . 1 . Repair 1 | . 1 . Recycling Unit Hacks 1 | . 1 . Retrieve Components 1 | . 1 . Scanalyzer . | . . . Garrison Access Hacks . | . . . Unauthorized Hacks . | . . . Terminals . | . . . Fabricators . | . . . Repair Stations . | . . . Recycling Units . | . . . Scanalyzers . | . . . Garrison Access . | . . . Data Cores Recovered . | . . . Used . | . . . Hacking Detections 2 | . 2 . Full Trace Events . | . . . Feedback Events . | . . . Feedback Blocked . | . . . Robot Schematics Acquired . | . . . Robots Built . | . . . Authchips . | . . . Time . | . . . Total Robot Build Rating . | . . . Part Schematics Acquired . | . . . Parts Built . | . . . Authchips . | . . . Time . | . . . Total Part Build Rating . | . . . Parts Repaired 1 | . 1 . Time 26 | . 26 . Parts Recycled . | . . . Recycled Matter . | . . . Retrieved Matter . | . . . Retrieved Components 10 | . 10 . Parts Scanalyzed . | . . . Part Schematics Acquired . | . . . Parts Damaged . | . . . Bothacking | -11 -10 -10 ------------ Run | Yrd Mat Sub Used RIF Installer . | . . . Robots Hacked . | . . . Non-combat . | . . . Combat . | . . . Robot Hacks Applied . | . . . Relay Couplers Released . | . . . Fabnet Peak Effective % . | . . . Robots Rewired . | . . . Allies Hacked . | . . . Hacks Repelled . | . . . Allies | -11 -10 -10 -------- Run | Yrd Mat Sub Total Allies . | . . . Largest Group . | . . . Highest-Rated Group . | . . . Highest-Rated Ally . | . . . Total Orders . | . . . Ally Attacks . | . . . Total Damage . | . . . Kills . | . . . Allies Corrupted . | . . . Allies Melted . | . . . Intel | -11 -10 -10 ------- Run | Yrd Mat Sub Robot Analysis Total . | . . . Derelict Logs Recovered 1 | . . 1 Drone Launches . | . . . Drone Recoveries . | . . . Exploration | -11 -10 -10 ------------- Run | Yrd Mat Sub Turns Passed 2645 | . 1498 1147 Spaces Moved 1396 | 1 789 606 Core . | . . . Treads 1395 | . 789 606 Legs 1 | 1 . . Wheels . | . . . Hover . | . . . Flight . | . . . Fastest Speed 120 | 120 160 160 Average Speed 160 | 120 160 160 Slowest Speed 240 | 120 160 240 Overloaded Moves . | . . . Propulsion Burnouts . | . . . Robots Hopped . | . . . Cave-ins Triggered . | . . . Exploration Rate (%) 52 | 2 98 56 Regions Visited 2 Branch Regions 1 Pre-discovered Areas . | . . . Known Exits Taken . | . . . Unknown Exits Taken 2 | 1 1 . Scrap Searched 3 | . . 3 Spaces Dug . | . . . Terrain Destroyed 1 | . . 1 Melee . | . . . Projectile 1 | . . 1 AOE . | . . . Terrain Rammed . | . . . Walls Destroyed . | . . . Machines Disabled . | . . . Actions | -11 -10 -10 --------- Run | Yrd Mat Sub Total 1618 | . 933 685 Wait 58 | . 57 1 Move 1394 | . 788 606 Hop . | . . . Pick Up 20 | . 11 9 Fast Attach 7 | . 5 2 Attach 4 | . 3 1 Detach 4 | . 4 . Swap 11 | . 4 7 Drop 19 | . 9 10 Fire 99 | . 51 48 Melee 1 | . . 1 Ram . | . . . Kick . | . . . Crush 1 | . 1 . Escape Stasis . | . . . Rewire . | . . . Trap . | . . . Miscellaneous . | . . . Route ------- -11/Scrapyard -10/Materials (discovered 5 exits: [*Mat x3] / [*Min] / [*Sub]) -10/Subcaves (discovered 2 exits: [*Mat] / [*Rec]) History --------- Turn | Location | Event 1 | -11/Scrapyard | Discovered new exit (range 0) 1 | -11/Scrapyard | Entered Materials 197 | -10/Materials | Discovered new exit (range 7) 237 | -10/Materials | Discovered new exit (range 5) 316 | -10/Materials | Build established: Mutant 621 | -10/Materials | Discovered new exit (range 8) 1128 | -10/Materials | Discovered new exit (range 16) 1423 | -10/Materials | Repaired Lgt. Treads 1493 | -10/Materials | Discovered new exit (range 5) 1499 | -10/Materials | Entered Subcaves 1527 | -10/Subcaves | Learned 4 Materials zone layouts 1637 | -10/Subcaves | Discovered new exit (range 9) 1666 | -10/Subcaves | Shifting Twisted Machinery released Sub. Beam Cannon 1892 | -10/Subcaves | A swath of the cavern ceiling suddenly collapsed 1989 | -10/Subcaves | Shifting Twisted Machinery released Sub. Beam Cannon 1997 | -10/Subcaves | Shifting Twisted Machinery released Mak. Laser 2311 | -10/Subcaves | Core integrity fell below 50% 2325 | -10/Subcaves | Core integrity fell below 20% 2362 | -10/Subcaves | Disturbed a concealed Subdweller 2543 | -10/Subcaves | Build established: Scavenger-Mutant 2643 | -10/Subcaves | Discovered new exit (range 10) 2646 | -10/Subcaves | Destroyed by S-10 Pest with Light Assault Rifle Last Messages --------------- Acquired 66 matter. Searching scrap... Found Flamer. Found Humpback. Found 69 Matter. Acquired 50 matter. Dropped Mace. Acquired Mak. Hammer. CY-MTN(R) angrily emerges from the Twisted Machinery. CY-MTN(R) destroyed. Subatomizers dissect the Humpback. TE-9P5(R) destroyed. Sub. Beam Cannon shoots sparks and powers down. K4-0R4(R) destroyed. Dropped Broken Sub. Beam Cannon. Acquired Sub. Beam Cannon. Acquired 10 matter. EXIT=FOUND Lgt. Treads destroyed. S-10 Pest springs to life. Map ----- +----------------------------------------------------+ | #### #??????????????##""" [ ### #########?? | | ## #??????????????## &= #### ###?? | | ## ##?????????????### ## ##?? | | #### ###???????????### ##?? | | #### #????????????## ### ###?? | | ### #????????????### ## #### ####?? | | ### ##????????????### ### #### ####??? | | ### ##??????????????### ####### ##???? | | #?####???????????????## ###### ###???? | | #??####??????????????### ##??### ##???? | | ## #### ##????????????? ##?#### ###???? | | ### ####?????????? ? # ### ###???? | | ## #????? ### ##???? | | #??? # ### ##???? | | ## ## #???## ###### ###??? | | ## #???? ?????## ### ####?? | | # #?????????????### ###?? | | ##?????????????#### ## ##?? | | # ##?####???????## ###### ## ##?? | | #?## ####???? #?## # ## ##?? | | ### ##??? #?## ####?? | | # ## #### #??### # # # #####?? | | ## #?## #??######## ###???? | | # #???# #???####### ##???? | | #????## ## ### #????????## ##???? | | ??????### ### #?##@ ###????????### ###???? | | # ?????????## ## #?#; #??????????## ###??? | | ?????????????#### ##?##ss #??????####### ###??? | | ????????????????# ###??? s ????####### ##??? | | ????????????????##?????? ###### ###??? | | ???????????????????????? s ##### ^ ###??? | | ???????????????????????? t t "## ## ####???? | | ??????????????????????? " " "## ####???? | | ???????????????????????""" """"##^ ##????? | | ???????????????????????###<####### ##????? | | ??????????????????????????######## ###????? | | ??????????????????????????##### # ###????? | | ??????????????????????????## ### ^ ###????? | | ??????????????????????????## ## ###????? | | ??????????????????????????### ^ ###???? | | ???????????????????????????### ## ###??? | | ??????????????????????????#### ## ##??? | | ??????????????????????????### ## ## ## ##??? | | ???????????????????????##### ### ## ### ##??? | | ???????????????????????##### ### # ## ##??? | | ???????????????????????## # ### ## ##?? ##??? | | ???????????????????????### ##### ##??###??? | | ???????????????????????## ##### ######????? | | ???????????????????????### ###?# ########???? | | ???????????????????????### ##??## # ####??? | +----------------------------------------------------+ Best States ------------- Heat Dissipation 25 Coolant Potential 50 Energy Generation 15 Energy Capacity 280 Matter Stores 300 Matter Capacity 300 Sight Range 16 Terrain Scan Density 10 Weapon Shielding 33 Evasion (%) 40 Recoil Reduction 2 Item Schematics ----------------- None Robot Schematics ------------------ None Fabricated ------------ Nothing Alien Tech Used ----------------- None Achievements -------------- None Challenges ------------ None Game ------ Seed MicroPointShifter Manual? 0 Play Time 00:21:26 Cumulative 175.9 hours Start 2024.08.08 @ 11:28:15 End 2024.08.08 @ 12:31:18 Sessions 1 Manual Loads 0 Difficulty Rogue Special Mode None Game No. 292 Rogue 290 Adventurer 2 Explorer 0 Win Type - Total 5 Types 4/0/0/1/0/0/0/0/0 Lore% 65 Gallery% 62 Achievement% 52 Wizard Run 0 Options --------- Layout 0 ASCII 0 Keyboard 1 Movement Numpad Keybinds 1 Fullscreen 2 Font 18/SmallcapsGlow Map View 76x50 Zoom Use 0% Tactical HUD 1 Map Filters NONE Filters NONE Steam 1 RUN: 407d55bc-4eae-4903-a571-467759d80b7e